[Event "Spring Chess Classic A 2024"]
[Site "Saint Louis"]
[Date "2024.04.11"]
[Round "1.5"]
[White "Yoo, Christopher Woojin"]
[Black "Theodorou, Nikolas"]
[Result "1-0"]
[ECO "A57"]
[WhiteElo "2583"]
[BlackElo "2622"]
[Annotator "TA"]
[PlyCount "101"]
[EventDate "2024.04.11"]
[EventCountry "USA"]
[SourceTitle "playchess.com"]
[Source "ChessBase"]
[SourceQuality "1"]
[TimeControl "7200+30"]

{[%evp 9,101,24,33,19,31,24,33,25,35,30,32,38,39,23,25,43,55,43,75,70,62,62,84,43,41,45,57,27,58,58,66,80,70,61,69,70,65,37,50,76,83,23,35,19,49,15,104,115,119,20,106,98,118,104,180,184,218,217,214,218,217,202,200,203,426,406,418,410,445,447,446,479,489,485,498,510,608,595,673,663,686,685,674,676,754,754,729,775,780,772,1384,1317,5608,5207]} 1. d4 {[%emt 0:00:07]} Nf6 {[%emt 0:00:21]} 2. c4 {[%emt 0:00:17]} c5 {[%emt 0:01:39]} 3. d5 {[%emt 0:00:10]} b5 {[%emt 0:00:04]} 4. Nd2 {[%emt 0:00:15]} b4 {[%emt 0:08:11]} 5. b3 {[%emt 0:08:17]} g6 {[%emt 0:20:37]} 6. Bb2 {[%emt 0:02:19]} Bg7 {[%emt 0:00:07]} 7. g3 {[%emt 0:04:17]} d6 {[%emt 0:03:50]} 8. Bg2 {[%emt 0:02:40] White is slightly better.} O-O {[%emt 0:00:13]} 9. Nh3 {[%emt 0:07:29]} a5 {[%emt 0:03:17][%cal Oa5a4]} 10. a4 {[%emt 0:00:30]} Ra7 {[%emt 0:10:58]} 11. O-O {[%emt 0:03:43]} e5 {[%emt 0:03:36][%cal Oe5e4]} 12. dxe6 {[%emt 0:07:31]} fxe6 {[%emt 0:01:34]} 13. Nf4 {[%emt 0:01:03]} Nh5 {[%emt 0:30:58]} 14. Bxg7 {[%emt 0:02:39]} Nxg7 {[%emt 0:01:01]} 15. Ne4 {[%emt 0:03:48]} Rd7 {[%emt 0:00:02]} 16. Qc2 {[%emt 0:05:18] White is more active.} Bb7 {[%emt 0:06:04]} 17. Rad1 {[%emt 0:02:57][%cal Oe4c5]} Nc6 {[%emt 0:01:02]} 18. Qb2 {[%emt 0:03:52]} g5 {[%emt 0:04:59]} 19. Nd3 {[%emt 0:03:22]} Nd4 {[%emt 0:10:47] [#]} 20. Nexc5 $1 {[%emt 0:05:28]} dxc5 {[%emt 0:00:18]} 21. Bxb7 {[%emt 0:00:21]} (21. Nxc5 Nf3+ (21... Bxg2 22. Nxd7 Qxd7 23. Rxd4 $11) 22. Bxf3 Rxd1 $11) 21... Rxb7 {[%emt 0:01:20]} 22. Nxc5 {[%emt 0:00:08]} e5 $1 {[%emt 0:00:08]} 23. Nxb7 {[%emt 0:00:24]} Qb6 {[%emt 0:00:51] [#]} 24. Nxa5 $1 {[%emt 0:00:23]} Nge6 {[%emt 0:03:32] [#]} (24... Qxa5 25. Rxd4) 25. Qd2 $1 {[%emt 0:04:25]} Qxa5 $11 {[%emt 0:02:06]} 26. Qe3 {[%emt 0:00:23]} Qc7 {[%emt 0:03:20]} 27. Rd3 {[%emt 0:02:33]} (27. Rxd4 $5 Nxd4 28. Qxg5+ Kh8 29. Qe3 $11) 27... Nc5 {[%emt 0:01:54] Dodges Qe4} (27... Nf5 $11 {keeps the balance.} 28. Qf3 Kh8) 28. Qxg5+ $16 {[%emt 0:02:22]} Qg7 {[%emt 0:03:15]} 29. Qxg7+ {[%emt 0:01:54]} Kxg7 {[%emt 0:00:02] [#]} 30. Rd2 {[%emt 0:01:30] White leaves nothing to chance now.} Ndxb3 {[%emt 0:02:19]} 31. Rb2 {[%emt 0:01:53]} Rd8 {[%emt 0:00:36] [#]} (31... Ra8 $16 {was worth a try.}) 32. Kg2 $1 $18 {[%emt 0:02:27]} Nd2 {[%emt 0:06:01]} 33. Rd1 {[%emt 0:01:26]} Nxc4 {[%emt 0:00:02]} 34. Rxd8 {[%emt 0:00:10]} Nxb2 {[%emt 0:00:02]} 35. Rb8 {[%emt 0:00:42]} b3 {[%emt 0:00:36]} 36. a5 {[%emt 0:00:08]} Nc4 $2 {[%emt 0:02:02] [#]} (36... Nba4 37. a6 Nxa6 38. Rb7+ (38. Rxb3 N4c5 $18) 38... Kg6) 37. a6 $1 {[%emt 0:00:24][%mdl 512]} Nxa6 {[%emt 0:00:30]} 38. Rxb3 {[%emt 0:00:13]} e4 {[%emt 0:00:40]} 39. Rb7+ {[%emt 0:00:34] White is clearly winning.} Kg6 {[%emt 0:00:12]} 40. Ra7 {[%emt 0:00:06]} Nb8 {[%emt 0:00:39]} 41. Ra4 {[%emt 0:00:32]} Ne5 {[%emt 0:00:40]} 42. Rxe4 {[%emt 0:00:16]} Nbd7 {[%emt 0:00:11]} 43. Rd4 {[%emt 0:01:28]} Nf6 {[%emt 0:00:04]} 44. e4 {[%emt 0:00:43]} Kf7 {[%emt 0:00:23]} 45. f4 {[%emt 0:00:22][%cal Bf2f4,Bf4f5][%mdl 32]} Nc6 {[%emt 0:00:02]} 46. Rc4 {[%emt 0:01:03]} Ne7 {[%emt 0:00:09]} 47. Kf3 {[%emt 0:00:22] Dodges Ng4} h5 {[%emt 0:00:02]} 48. h3 {[%emt 0:00:31]} Ne8 {[%emt 0:01:23]} 49. Rc5 {[%emt 0:00:56]} Ng7 {[%emt 0:00:17]} 50. f5 {[%emt 0:00:57]} Kf6 {[%emt 0:00:02]} 51. Rc7 {[%emt 0:01:07] Weighted Error Value: White=0.05 (flawless) /Black=0.27 (precise) .  Mistake:       	White=1     	Black=3      Inaccurate:     	White=3     	Black=3      OK:         	White=22    	Black=14     Best:        	White=1     	---        Strong:       	White=1     	Black=1      Brilliant:      	White=3     	---} 1-0

[Event "Spring Chess Classic A 2024"]
[Site "Saint Louis"]
[Date "2024.04.13"]
[Round "2.1"]
[White "Mendonca, Leon Luke"]
[Black "Theodorou, Nikolas"]
[Result "1/2-1/2"]
[ECO "E48"]
[WhiteElo "2626"]
[BlackElo "2622"]
[Annotator "TA"]
[PlyCount "108"]
[EventDate "2024.04.11"]
[EventCountry "USA"]
[SourceTitle "playchess.com"]
[Source "ChessBase"]
[SourceQuality "1"]
[TimeControl "7200+30"]

{[%evp 36,108,0,0,0,-102,0,0,0,-79,-83,-69,-53,-93,-52,-55,-18,-49,0,-12,0,-75,-78,-81,-85,-227,-249,-252,-233,-244,-265,-229,-250,-239,-248,-311,-302,-310,-242,-300,-300,-299,-250,-299,-299,-321,-290,-312,-312,-401,-387,-317,-317,-355,-347,-311,-333,-274,-12,-12,-12,-12,-4,-29995,-4,-4,0,0,0,-29995,0,0,0,0,0]} 1. d4 {[%emt 0:00:17]} Nf6 {[%emt 0:00:07]} 2. c4 {[%emt 0:00:40]} e6 {[%emt 0:00:05]} 3. Nc3 {[%emt 0:00:32]} Bb4 {[%emt 0:00:06]} 4. e3 {[%emt 0:00:29]} O-O {[%emt 0:00:10]} 5. Bd3 {[%emt 0:00:05]} d5 {[%emt 0:00:03]} 6. cxd5 {[%emt 0:00:41]} exd5 {[%emt 0:00:06]} 7. Nge2 {[%emt 0:00:07]} Re8 {[%emt 0:00:13]} 8. Bd2 {[%emt 0:00:47] E48: Nimzo-Indian: Rubinstein: 5 Bd3 d5 including 6 Ne2, but excluding 6 a3.} Bd6 {[%emt 0:03:10]} 9. Rc1 {[%emt 0:01:04]} a6 {[%emt 0:03:16]} 10. O-O {[%emt 0:02:11]} b6 {[%emt 0:05:39]} 11. Nf4 {[%emt 0:01:14]} Bb7 {[%emt 0:02:51]} 12. Qf3 {[%emt 0:03:04]} g6 $5 $146 {[%emt 0:22:57][%mdl 8] An interesting novelty.} ({Predecessor:} 12... c5 13. Nfxd5 Nxd5 14. Bc4 Bxh2+ 15. Kxh2 Qc7+ 16. Qg3 Qxg3+ 17. Kxg3 Nxc3 18. Bxc3 Nd7 19. Rfe1 b5 20. Bb3 a5 21. dxc5 Nxc5 22. Bc2 {½-½ Babula,V (2539)-Korobov,A (2667) SVK-chT 2324 2023 (3.1)}) 13. Rfd1 {[%emt 0:09:33]} Ra7 {[%emt 0:05:36]} 14. Bb1 {[%emt 0:26:26]} Ba8 {[%emt 0:03:09]} 15. a4 {[%emt 0:21:06]} c5 {[%emt 0:13:12]} 16. a5 {[%emt 0:06:37]} bxa5 {[%emt 0:02:06]} 17. dxc5 {[%emt 0:02:19]} Bxc5 {[%emt 0:21:43]} 18. Ba2 {[%emt 0:12:26]} Rd7 {[%emt 0:02:04]} 19. Be1 $1 {[%emt 0:03:43]} (19. Ncxd5 Nxd5 20. Bxa5 (20. Rxc5 $2 Nxe3 21. Bxf7+ Rxf7 $19) 20... Nxf4 (20... Qxa5 $2 21. Bxd5 Bxd5 22. Nxd5 $19) 21. Rxd7 Nxd7 $15 (21... Qxd7 $2 22. Qxf4 Nc6 23. Bc3 $19) (21... Bxf3 $2 22. Bxf7+ Kf8 23. Rxd8 $19)) 19... Bb4 {[%emt 0:02:33]} 20. h3 {[%emt 0:19:42] [#]} (20. Bxd5 $2 Nxd5 21. Ncxd5 Bxe1 $19) (20. Bb3 $11 {keeps the balance.}) 20... Bb7 {[%emt 0:06:49]} (20... Nc6 $1 $17 {Strongly threatening ...Kg7.} 21. h4 (21. Bxd5 $2 Ne5 $19) (21. Nfxd5 $2 Nxd5 22. Nxd5 Ne5 $17) 21... Bxc3 (21... Ne5 22. Qg3 $17) 22. bxc3 (22. Bxc3 $2 d4 $19) 22... d4 (22... Ne5 23. Qg3 $15)) 21. Qg3 $1 $11 {[%emt 0:04:16]} (21. Ncxd5 $2 Bxe1 22. Nxf6+ Qxf6 $19) 21... Kg7 {[%emt 0:11:22]} 22. Nce2 {[%emt 0:03:58]} (22. Bd2 $11 {remains equal.}) 22... Bxe1 {[%emt 0:04:47]} 23. Rxe1 {[%emt 0:00:03]} Nc6 {[%emt 0:00:05]} 24. Nd3 {[%emt 0:04:28]} Ne4 {[%emt 0:03:48]} 25. Qf4 {[%emt 0:00:26]} Qb6 {[%emt 0:03:06]} 26. Red1 {[%emt 0:03:06]} (26. f3 {simplifies} Nf6 27. Nd4 Nxd4 28. Qxd4 Qxd4 29. exd4 Rxe1+ 30. Rxe1 Bc6 31. Nc5) 26... Nb4 {[%emt 0:06:08]} (26... Rd6 $15 {was preferrable.} 27. Bb1 Rf6) 27. Nxb4 {[%emt 0:02:04]} axb4 {[%emt 0:00:02]} 28. Rd4 {[%emt 0:01:47]} (28. Bb1 $11) 28... a5 $17 {[%emt 0:01:19]} 29. Rcd1 {[%emt 0:00:39]} Rd6 {[%emt 0:02:31]} 30. f3 {[%emt 0:01:06]} (30. Qf3 $17 {keeps fighting.}) 30... Rf6 $19 {[%emt 0:02:00]} 31. Qg4 {[%emt 0:00:29]} h5 {[%emt 0:03:56]} 32. Qh4 {[%emt 0:00:01]} Nd6 {[%emt 0:00:04]} 33. Ng3 {[%emt 0:01:00]} Nf5 {[%emt 0:00:54]} ({Worse is} 33... Rxe3 34. Nxh5+ (34. Bxd5 $2 {too greedy.} Bxd5 35. Nxh5+ gxh5 $19) 34... gxh5 35. Qg5+ (35. Bxd5 $2 Re2 $19) 35... Rg6 36. Qxe3 $11) 34. Nxf5+ {[%emt 0:00:12]} Rxf5 {[%emt 0:00:02]} 35. Bxd5 {[%emt 0:00:37]} Bxd5 {[%emt 0:00:47]} (35... Rxe3 36. Qf2 Re7 37. R4d2 Qxf2+ 38. Kxf2 $17) 36. Rxd5 {[%emt 0:00:04]} Qxe3+ {[%emt 0:00:53]} 37. Kh2 {[%emt 0:00:16]} Rxd5 {[%emt 0:00:24]} 38. Rxd5 {[%emt 0:00:01]} Re5 {[%emt 0:00:12]} 39. Rd6 {[%emt 0:01:01]} Rf5 {[%emt 0:00:32]} 40. Qd4+ {[%emt 0:01:18]} Qxd4 {[%emt 0:00:08]} 41. Rxd4 {[%emt 0:00:01]} Rc5 {[%emt 0:00:20]} 42. Kg3 {[%emt 0:00:52]} Rc2 {[%emt 0:00:44]} 43. b3 {[%emt 0:00:38]} h4+ {[%emt 0:01:02]} (43... Rc3 44. Rd5 $17) 44. Kxh4 {[%emt 0:00:07]} Rxg2 {[%emt 0:00:40]} 45. Rd5 {[%emt 0:00:55]} Kh6 {[%emt 0:00:37]} 46. f4 {[%emt 0:00:00] [#]} a4 $2 {[%emt 0:00:27]} (46... Ra2 $1 $19 {[%mdl 512] Hoping for ...Ra3.} 47. Rc5 (47. Rd1 Rf2) 47... f6) 47. bxa4 $11 {[%emt 0:00:03]} b3 {[%emt 0:00:10]} 48. Rd8 $1 {[%emt 0:00:29]} b2 {[%emt 0:01:00]} 49. Rh8+ {[%emt 0:00:15]} Kg7 {[%emt 0:00:01]} 50. Rb8 {[%emt 0:00:07]} f6 {[%emt 0:00:54]} 51. a5 {[%emt 0:00:09]} Kh6 {[%emt 0:00:28]} 52. Rh8+ {[%emt 0:00:01]} Kg7 {[%emt 0:00:04]} 53. Rb8 {[%emt 0:00:13]} Kh6 {[%emt 0:01:02]} 54. Rh8+ {[%emt 0:00:02]} Kg7 {[%emt 0:00:05]} 1/2-1/2

[Event "Spring Chess Classic A 2024"]
[Site "Saint Louis"]
[Date "2024.04.13"]
[Round "2.2"]
[White "Antipov, Mikhail Al."]
[Black "Yoo, Christopher Woojin"]
[Result "1/2-1/2"]
[ECO "B10"]
[WhiteElo "2574"]
[BlackElo "2583"]
[Annotator "TA"]
[PlyCount "68"]
[EventDate "2024.04.11"]
[EventCountry "USA"]
[SourceTitle "playchess.com"]
[Source "ChessBase"]
[SourceQuality "1"]
[TimeControl "7200+30"]

{[%evp 9,68,11,0,6,14,17,9,13,23,8,17,7,12,10,10,12,17,12,10,8,10,14,8,5,10,10,12,10,11,0,14,8,16,4,8,6,8,0,17,17,15,0,0,0,4,4,6,6,14,12,12,4,5,0,111,0,8,0,0,0,4]} 1. e4 {[%emt 0:00:02]} c6 {[%emt 0:00:11]} 2. Nf3 {[%emt 0:02:47]} d5 {[%emt 0:00:09]} 3. d3 {[%emt 0:00:03]} Bg4 {[%emt 0:01:33]} 4. c3 {[%emt 0:14:51]} Nd7 {[%emt 0:09:58]} 5. Nbd2 {[%emt 0:04:10][%cal Bb1d2,Bd2b3,Bb3c5][%mdl 32]} Ngf6 {[%emt 0:03:42]} 6. Be2 {[%emt 0:14:44]} Bxf3 {[%emt 0:06:06]} 7. Bxf3 {[%emt 0:05:48]} Nc5 {[%emt 0:00:50]} 8. Nb3 {[%emt 0:00:52]} dxe4 {[%emt 0:00:31]} 9. Nxc5 {[%emt 0:00:06]} exf3 {[%emt 0:00:05]} 10. Qxf3 {[%emt 0:00:04]} Nd7 {[%emt 0:02:24]} 11. Nxd7 {[%emt 0:05:50]} (11. Nxb7 $2 {too greedy.} Qc7 $19) 11... Qxd7 {[%emt 0:00:06]} 12. Bf4 {[%emt 0:00:13]} Qd5 {[%emt 0:05:13]} 13. Qxd5 {[%emt 0:02:37]} cxd5 {[%emt 0:00:04]} 14. a4 {[%emt 0:00:22]} e6 {[%emt 0:01:45]} 15. a5 {[%emt 0:00:16]} Kd7 {[%emt 0:01:20]} 16. Kd2 {[%emt 0:00:27]} Bd6 {[%emt 0:00:34]} 17. Bxd6 {[%emt 0:00:56]} Kxd6 $11 {[%emt 0:00:04][%mdl 4096] Endgame. KRR-KRR} 18. Ra4 {[%emt 0:00:19]} Kc6 {[%emt 0:04:19]} 19. Rha1 {[%emt 0:01:25]} Rad8 {[%emt 0:01:39]} 20. Rb4 {[%emt 0:03:29]} e5 {[%emt 0:03:15]} 21. c4 {[%emt 0:10:41] Hoping for cxd5+.} dxc4 {[%emt 0:02:13]} 22. Rxc4+ {[%emt 0:00:10]} Kd6 $1 {[%emt 0:00:06]} 23. f4 {[%emt 0:00:52]} f6 {[%emt 0:01:07]} 24. fxe5+ {[%emt 0:20:07]} fxe5 {[%emt 0:00:10]} 25. Ra3 {[%emt 0:08:17]} Rhf8 {[%emt 0:04:22]} 26. Ke3 {[%emt 0:00:16] Inhibits Rf2.} Rf7 {[%emt 0:01:06]} 27. Rb3 {[%emt 0:00:46]} Ke6 {[%emt 0:01:13]} 28. Rc5 {[%emt 0:01:57]} Rd5 {[%emt 0:05:15]} 29. Rxd5 {[%emt 0:00:16]} Kxd5 {[%emt 0:00:06] KR-KR} 30. Rb5+ {[%emt 0:00:04]} Ke6 {[%emt 0:00:16]} 31. Ke4 {[%emt 0:11:18][%cal Og2g3]} Rf4+ {[%emt 0:00:07]} 32. Ke3 {[%emt 0:00:02]} Rf7 {[%emt 0:00:05] The position is equal.} 33. Ke4 {[%emt 0:00:02][%cal Og2g3]} Rf4+ {[%emt 0:00:03]} 34. Ke3 {[%emt 0:00:04]} Rf7 {[%emt 0:00:03] Weighted Error Value: White=0.03 (flawless) /Black=0.03 (flawless) .  Inaccurate:     	White=1     	---        OK:         	White=7     	Black=10     Best:        	---       	Black=3      Strong:       	---       	Black=1} 1/2-1/2

[Event "Spring Chess Classic A 2024"]
[Site "Saint Louis"]
[Date "2024.04.13"]
[Round "2.3"]
[White "Swiercz, Dariusz"]
[Black "Ter-Sahakyan, Samvel"]
[Result "1/2-1/2"]
[ECO "B90"]
[WhiteElo "2612"]
[BlackElo "2644"]
[Annotator "RC"]
[PlyCount "117"]
[EventDate "2024.04.11"]
[EventCountry "USA"]
[SourceTitle "playchess.com"]
[Source "ChessBase"]
[SourceQuality "1"]
[TimeControl "7200+30"]

1. e4 {[%emt 0:01:42]} c5 {[%emt 0:00:08]} 2. Nf3 {[%emt 0:00:23]} d6 {[%emt 0:00:06]} 3. d4 {[%emt 0:00:09]} cxd4 {[%emt 0:00:05]} 4. Nxd4 {[%emt 0:00:05]} Nf6 {[%emt 0:00:06]} 5. Nc3 {[%emt 0:00:03]} a6 {[%emt 0:00:05]} 6. Be3 {[%emt 0:00:08]} e5 {[%emt 0:00:45]} 7. Nb3 {[%emt 0:00:13]} Be7 {[%emt 0:00:20]} 8. h3 {[%emt 0:00:12]} h6 {[%emt 0:03:34]} 9. Rg1 {[%emt 0:00:09]} Qc7 {[%emt 0:10:49]} 10. g4 {[%emt 0:00:22]} b5 {[%emt 0:07:58]} 11. a4 {[%emt 0:00:11]} b4 {[%emt 0:08:11]} 12. Nd5 {[%emt 0:00:10]} Nxd5 {[%emt 0:00:42]} 13. exd5 {[%emt 0:00:04]} Nd7 {[%emt 0:01:41]} 14. Qd3 {[%emt 0:03:06]} Rb8 {[%emt 0:19:30]} 15. O-O-O {[%emt 0:11:23]} Bg5 {[%emt 0:08:40]} 16. Kb1 {[%emt 0:05:39]} Bb7 {[%emt 0:09:01]} 17. Bxg5 {[%emt 0:25:58]} hxg5 {[%emt 0:00:10]} 18. Qd2 {[%emt 0:00:02]} Rc8 {[%emt 0:05:34]} 19. Bd3 {[%emt 0:08:53]} Rxh3 {[%emt 0:12:58]} 20. Be4 {[%emt 0:10:50]} Nf6 {[%emt 0:12:42]} 21. Bf5 {[%emt 0:03:44]} Rb8 {[%emt 0:01:13]} 22. Qxg5 {[%emt 0:00:35]} Kf8 {[%emt 0:00:34]} 23. Qd2 {[%emt 0:10:19]} Nxd5 {[%emt 0:00:54]} 24. Rge1 {[%emt 0:00:04]} Ne7 {[%emt 0:14:04]} 25. Qxd6 {[%emt 0:01:07]} Qxd6 {[%emt 0:00:18]} 26. Rxd6 {[%emt 0:00:03]} Nxf5 {[%emt 0:02:31]} 27. gxf5 {[%emt 0:00:09]} Rh6 {[%emt 0:00:17]} 28. Rd7 {[%emt 0:05:56]} Bc6 {[%emt 0:05:17]} 29. Nc5 {[%emt 0:00:15]} Rc8 {[%emt 0:02:34]} 30. Ra7 {[%emt 0:02:05]} Bd5 {[%emt 0:01:13]} 31. Nd7+ {[%emt 0:22:52]} Kg8 {[%emt 0:00:01]} 32. Nxe5 {[%emt 0:00:05]} b3 {[%emt 0:02:05]} 33. cxb3 {[%emt 0:06:25]} Bxb3 {[%emt 0:00:04]} 34. Rb7 {[%emt 0:00:14]} Bxa4 {[%emt 0:01:32]} 35. Nxf7 {[%emt 0:09:26]} Rf6 {[%emt 0:00:07]} 36. Ree7 {[%emt 0:01:26]} Bc2+ {[%emt 0:00:41]} 37. Ka2 {[%emt 0:00:02]} Rxf5 {[%emt 0:01:54]} 38. Ne5 {[%emt 0:00:25]} Rg5 {[%emt 0:00:12]} 39. Rbc7 {[%emt 0:03:29]} Rxc7 {[%emt 0:00:13]} 40. Rxc7 {[%emt 0:00:02]} Rxe5 {[%emt 0:00:13]} 41. Rxc2 {[%emt 0:00:01]} Kf7 {[%emt 0:00:13]} 42. Ka3 {[%emt 0:00:56]} g5 {[%emt 0:00:25]} 43. Rc7+ {[%emt 0:01:08]} Kg6 {[%emt 0:00:20]} 44. Rc6+ {[%emt 0:00:24]} Kh5 {[%emt 0:00:01]} 45. Rxa6 {[%emt 0:00:39]} Rf5 {[%emt 0:00:05]} 46. Ra8 {[%emt 0:00:25]} Rxf2 {[%emt 0:00:34]} 47. Rh8+ {[%emt 0:00:04]} Kg4 {[%emt 0:00:34]} 48. b4 {[%emt 0:00:03]} Rf1 {[%emt 0:00:13]} 49. b5 {[%emt 0:00:10]} Rb1 {[%emt 0:00:04]} 50. Ka4 {[%emt 0:00:05]} Kg3 {[%emt 0:00:13]} 51. Rg8 {[%emt 0:00:04]} g4 {[%emt 0:00:06]} 52. Ka5 {[%emt 0:00:02]} Kf3 {[%emt 0:00:06]} 53. b6 {[%emt 0:00:19]} g3 {[%emt 0:00:02]} 54. Ka6 {[%emt 0:00:10]} g2 {[%emt 0:00:05]} 55. b7 {[%emt 0:00:07]} Kf2 {[%emt 0:00:05]} 56. Ka7 {[%emt 0:00:11]} g1=Q {[%emt 0:00:09]} 57. Rxg1 {[%emt 0:00:02]} Kxg1 {[%emt 0:00:06]} 58. b8=Q {[%emt 0:00:04]} Rxb8 {[%emt 0:00:10]} 59. Kxb8 {[%emt 0:00:03]} 1/2-1/2

[Event "Spring Chess Classic A 2024"]
[Site "Saint Louis"]
[Date "2024.04.13"]
[Round "2.4"]
[White "Aryan Chopra"]
[Black "Bok, Benjamin"]
[Result "1-0"]
[ECO "D37"]
[WhiteElo "2630"]
[BlackElo "2620"]
[Annotator "ChessBase"]
[PlyCount "95"]
[EventDate "2024.04.11"]
[EventCountry "USA"]
[SourceTitle "playchess.com"]
[Source "ChessBase"]
[SourceQuality "1"]
[TimeControl "7200+30"]

1. d4 {[%emt 0:00:02]} d5 {[%emt 0:05:43]} 2. c4 {[%emt 0:00:07]} e6 {[%emt 0:00:07]} 3. Nf3 {[%emt 0:00:06]} Nf6 {[%emt 0:00:07]} 4. Nc3 {[%emt 0:00:04]} Be7 {[%emt 0:03:59]} 5. Bf4 {[%emt 0:00:42]} O-O {[%emt 0:02:17]} 6. e3 {[%emt 0:00:15]} Nbd7 {[%emt 0:00:16]} 7. Be2 {[%emt 0:19:03]} dxc4 {[%emt 0:00:40]} 8. Bxc4 {[%emt 0:00:16]} a6 {[%emt 0:02:35]} 9. a4 {[%emt 0:04:50]} c5 {[%emt 0:00:42]} 10. dxc5 {[%emt 0:06:46]} Nh5 {[%emt 0:43:47]} 11. c6 {[%emt 0:29:08]} Nb6 {[%emt 0:01:59]} 12. Bd3 {[%emt 0:00:50]} Nxf4 {[%emt 0:01:34]} 13. exf4 {[%emt 0:00:05]} bxc6 {[%emt 0:12:24]} 14. Ne5 {[%emt 0:00:11]} Bf6 {[%emt 0:06:29]} 15. O-O {[%emt 0:02:24]} Qc7 {[%emt 0:03:29]} 16. Re1 {[%emt 0:09:24]} Nd5 {[%emt 0:05:28]} 17. g3 {[%emt 0:11:01]} Rb8 {[%emt 0:05:09]} 18. Qc2 {[%emt 0:05:31]} g6 {[%emt 0:02:02]} 19. Nxd5 {[%emt 0:01:50]} exd5 {[%emt 0:00:08]} 20. Rac1 {[%emt 0:00:07]} Bxe5 {[%emt 0:09:36]} 21. Rxe5 {[%emt 0:12:42]} Rd8 {[%emt 0:02:15]} 22. Rce1 {[%emt 0:06:59]} c5 {[%emt 0:06:06]} 23. f5 {[%emt 0:04:34]} Qd6 {[%emt 0:00:22]} 24. fxg6 {[%emt 0:04:30]} hxg6 {[%emt 0:00:11]} 25. Qd2 {[%emt 0:00:55]} Qf6 {[%emt 0:05:55]} 26. Re8+ {[%emt 0:07:15]} Kg7 {[%emt 0:09:38]} 27. Rxd8 {[%emt 0:01:33]} Qxd8 {[%emt 0:00:01]} 28. Qc3+ {[%emt 0:00:02]} Qf6 {[%emt 0:01:00]} 29. Re8 {[%emt 0:00:51]} Qxc3 {[%emt 0:00:20]} 30. bxc3 {[%emt 0:00:02]} c4 {[%emt 0:00:35]} 31. Bf1 {[%emt 0:00:05]} a5 {[%emt 0:00:31]} 32. f4 {[%emt 0:00:40]} Ra8 {[%emt 0:00:34]} 33. Kf2 {[%emt 0:00:53]} Bb7 {[%emt 0:00:28]} 34. Rxa8 Bxa8 {[%emt 0:00:01]} 35. Be2 {[%emt 0:03:29]} Bc6 {[%emt 0:00:41]} 36. Bd1 {[%emt 0:00:01]} Kf6 {[%emt 0:00:50]} 37. Ke3 {[%emt 0:00:09]} Ke6 {[%emt 0:00:29]} 38. Kd4 {[%emt 0:00:22]} f5 {[%emt 0:00:31]} 39. Kc5 {[%emt 0:00:17]} Kd7 {[%emt 0:00:28]} 40. g4 {[%emt 0:00:55]} fxg4 {[%emt 0:00:22]} 41. Bxg4+ {[%emt 0:00:05]} Kc7 {[%emt 0:00:03]} 42. Bd1 {[%emt 0:00:07]} Ba8 {[%emt 0:01:03]} 43. Bc2 {[%emt 0:00:18]} Bc6 {[%emt 0:00:24]} 44. h4 {[%emt 0:00:24]} Kd7 {[%emt 0:00:40]} 45. f5 {[%emt 0:00:51]} gxf5 {[%emt 0:00:28]} 46. Bxf5+ {[%emt 0:00:21]} Kc7 {[%emt 0:00:03]} 47. h5 {[%emt 0:00:05]} d4 {[%emt 0:00:24]} 48. Kxd4 {[%emt 0:00:11]} 1-0

[Event "Spring Chess Classic A 2024"]
[Site "Saint Louis"]
[Date "2024.04.13"]
[Round "2.5"]
[White "Mishra, Abhimanyu"]
[Black "Hakobyan, Aram"]
[Result "1-0"]
[ECO "C54"]
[WhiteElo "2626"]
[BlackElo "2619"]
[Annotator "RC"]
[PlyCount "105"]
[EventDate "2024.04.11"]
[EventCountry "USA"]
[SourceTitle "playchess.com"]
[Source "ChessBase"]
[SourceQuality "1"]
[TimeControl "7200+30"]

1. e4 {[%emt 0:00:02]} e5 {[%emt 0:00:51]} 2. Nf3 {[%emt 0:00:02]} Nc6 {[%emt 0:00:09]} 3. Bc4 {[%emt 0:00:06]} Bc5 {[%emt 0:00:29]} 4. c3 {[%emt 0:00:05]} Nf6 {[%emt 0:00:05]} 5. d3 {[%emt 0:00:12]} d6 {[%emt 0:00:16]} 6. O-O {[%emt 0:00:20]} a6 {[%emt 0:00:12]} 7. a4 {[%emt 0:00:18]} Ba7 {[%emt 0:00:13]} 8. Re1 {[%emt 0:00:17]} O-O {[%emt 0:00:10]} 9. h3 {[%emt 0:00:26]} Re8 {[%emt 0:00:12]} 10. b4 {[%emt 0:00:28]} Be6 {[%emt 0:00:20]} 11. Bxe6 {[%emt 0:00:17]} Rxe6 {[%emt 0:00:08]} 12. g3 {[%emt 0:00:11]} h6 {[%emt 0:12:26]} 13. Nbd2 {[%emt 0:01:09]} Ne7 {[%emt 0:07:59]} 14. Kg2 {[%emt 0:05:16]} Ng6 {[%emt 0:00:39]} 15. Qc2 {[%emt 0:06:53]} d5 {[%emt 0:04:41]} 16. Nb3 {[%emt 0:01:30]} Qe7 {[%emt 0:11:11]} 17. Be3 {[%emt 0:14:07]} Bxe3 {[%emt 0:01:03]} 18. Rxe3 {[%emt 0:00:16]} dxe4 {[%emt 0:32:36]} 19. dxe4 {[%emt 0:00:16]} Rd6 {[%emt 0:00:31]} 20. a5 {[%emt 0:16:50]} Rad8 {[%emt 0:05:39]} 21. Nc5 {[%emt 0:05:05]} c6 {[%emt 0:01:09]} 22. c4 {[%emt 0:18:42]} Nh7 {[%emt 0:03:13]} 23. h4 {[%emt 0:09:48]} Nf6 {[%emt 0:00:06]} 24. Raa3 {[%emt 0:01:57]} Nf8 {[%emt 0:05:13]} 25. Red3 {[%emt 0:07:44]} Ne6 {[%emt 0:01:23]} 26. Rxd6 {[%emt 0:07:34]} Rxd6 {[%emt 0:00:13]} 27. Nxe6 {[%emt 0:00:18]} Qxe6 {[%emt 0:00:23]} 28. c5 {[%emt 0:01:47]} Rd7 {[%emt 0:00:18]} 29. Re3 {[%emt 0:04:25]} Ng4 {[%emt 0:14:02]} 30. Re2 {[%emt 0:06:49]} Kf8 {[%emt 0:00:35]} 31. Rd2 {[%emt 0:01:00]} Ke7 {[%emt 0:02:05]} 32. Qc3 {[%emt 0:04:01]} Rxd2 {[%emt 0:09:23]} 33. Nxd2 {[%emt 0:00:37]} g5 {[%emt 0:04:27]} 34. f3 {[%emt 0:03:02]} Nf6 {[%emt 0:00:11]} 35. Nc4 {[%emt 0:05:34]} Nd7 {[%emt 0:00:11]} 36. Qd3 {[%emt 0:02:21]} gxh4 {[%emt 0:04:16]} 37. gxh4 {[%emt 0:00:09]} Nf6 {[%emt 0:06:17]} 38. Qc3 {[%emt 0:01:21]} Nd7 {[%emt 0:00:17]} 39. Nd6 {[%emt 0:05:13]} Qa2+ {[%emt 0:00:36]} 40. Kf1 {[%emt 0:00:40]} Qb1+ {[%emt 0:02:34]} 41. Ke2 {[%emt 0:00:17]} Qh1 {[%emt 0:02:13]} 42. Qe1 {[%emt 0:01:10]} Qh2+ {[%emt 0:02:03]} 43. Qf2 {[%emt 0:00:11]} Qh1 {[%emt 0:00:19]} 44. Qg3 {[%emt 0:00:39]} Qa1 {[%emt 0:00:42]} 45. Qg8 {[%emt 0:01:13]} Qa2+ {[%emt 0:00:13]} 46. Kf1 {[%emt 0:00:23]} Nf8 {[%emt 0:00:42]} 47. Qg7 {[%emt 0:01:32]} Qe6 {[%emt 0:00:34]} 48. Nf5+ {[%emt 0:00:11]} Ke8 {[%emt 0:00:05]} 49. h5 {[%emt 0:00:39]} Qc4+ {[%emt 0:00:53]} 50. Kf2 {[%emt 0:00:09]} Qa2+ {[%emt 0:00:29]} 51. Kg3 {[%emt 0:00:28]} Qe6 {[%emt 0:00:31]} 52. Qh8 {[%emt 0:00:47]} Qb3 {[%emt 0:00:33]} 53. Qf6 {[%emt 0:00:22]} 1-0